Cogmind - Beta 16 --- EXPLORER MODE // 2025.12.26 @ 10:26:24 Player: K.K.Y. Result: Destroyed by G-50 Soldier with Heavy Laser Performance ------------- Evolutions (4) 2000 Regions Visited (6) 1200 Robots Destroyed (73) 365 Value Destroyed (2205) 2205 Prototype IDs (18) 360 Alien Tech Used (0) 0 Bonus (2000) 2000 TOTAL SCORE: 8130 Bonus ------- Delivered SUBCON Basin 2000 Cogmind --------- Core Integrity 0/850 Matter 300/300 Energy 100/100 System Corruption 3% Temperature Cool (9) Movement Core (350) Ox6 Location -6/Factory Parts ------- > --- POWER (2) -------- (None) > --- PROPULSION (6) --- (None) > --- UTILITY (6) ------ Large Storage Unit System Shield > --- WEAPON (2) ------- (None) > --- INVENTORY (15) --- Light Angular Momentum Engine Advanced Heat Sink Experimental Sensor Array Makeshift Light Armor Plating Makeshift Hacking Suite Authchip [Propulsion] Authchip [Device] Authchip [Device] Tech Extrapolator Makeshift System Restoration Module Improved Remote Datajack Peak State ------------ > --- POWER ------------ Light Antimatter Reactor Meta Core > --- PROPULSION ------- Carbon-fiber Leg Flexi-carbon Leg VTOL Module VTOL Module Cesium-ion Thruster Cesium-ion Thruster > --- UTILITY ---------- Large Storage Unit System Shield > --- WEAPON ----------- Plasma Rifle > --- INVENTORY -------- Light Angular Momentum Engine Advanced Heat Sink Experimental Sensor Array Makeshift Light Armor Plating Makeshift Hacking Suite Authchip [Propulsion] Authchip [Device] Authchip [Device] Tech Extrapolator Makeshift System Restoration Module Improved Remote Datajack [Rating: 52] Favorites ----------- Power Light Nuclear Core Engine Improved Ion Engine Power Core Light Nuclear Core Reactor Light Antimatter Reactor Propulsion Spiked Treads Treads Spiked Treads Leg Carbon-fiber Leg Flight Unit Cesium-ion Thruster Utility Humpback Device Structural Scanner Storage Humpback Hackware System Shield Weapon Ripper Energy Gun Medium Laser Energy Cannon Plasma Cannon Ballistic Gun Barrage Gun Special Weapon Mining Laser Slashing Weapon Ripper Build | -11 -10 -10 -10 -8 -8 -6 ------- Run | Yrd Mat Min Sub Rec Scr Fac Slots Evolved 9 | . 1 . . . . 8 Power 1 | . . . . . . 1 Propulsion 4 | . . . . . . 4 Utility 4 | . 1 . . . . 3 Weapon . | . . . . . . . Parts Attached 57 | 5 3 4 18 4 4 19 Power 12 | 1 . 1 2 2 2 4 Engine 5 | 1 . 1 2 . . 1 Core 6 | . . . . 2 2 2 Reactor 1 | . . . . . . 1 Propulsion 17 | 2 . 1 4 1 1 8 Treads 10 | 2 . 1 4 1 1 1 Leg 3 | . . . . . . 3 Wheel . | . . . . . . . Hover . | . . . . . . . Flight 4 | . . . . . . 4 Utility 9 | . 1 2 4 1 . 1 Device 6 | . . 2 3 . . 1 Storage 2 | . 1 . 1 . . . Processor . | . . . . . . . Hackware 1 | . . . . 1 . . Protection . | . . . . . . . Artifact . | . . . . . . . Weapon 19 | 2 2 . 8 . 1 6 Energy Gun 11 | 1 2 . 4 . . 4 Energy Cannon 2 | . . . . . . 2 Ballistic Gun 3 | 1 . . 1 . 1 . Ballistic Cannon . | . . . . . . . Launcher . | . . . . . . . Special Weapon 2 | . . . 2 . . . Impact Weapon . | . . . . . . . Slashing Weapon 1 | . . . 1 . . . Piercing Weapon . | . . . . . . . Special Melee Weapon . | . . . . . . . Unidentified Prototypes . | . . . . . . . Parts Lost 33 | . . . 6 1 . 26 Power 7 | . . . 1 1 . 5 Propulsion 10 | . . . . . . 10 Utility 5 | . . . 3 . . 2 Weapon 11 | . . . 2 . . 9 Highest Loss Streak 16 | . . . 2 1 . 16 To Critical Strikes . | . . . . . . . Average Backups 22 | 1 8 12 15 27 34 24 Power 2 | . 1 3 2 2 1 . Propulsion . | . 1 2 . . . . Utility 12 | . 3 4 7 15 20 15 Weapon 5 | . 2 3 3 6 10 6 Tool/Special . | . . . . . . . Unused Backups 42 | . 1 . . 3 12 26 Power 2 | . . . . 1 . 1 Propulsion . | . . . . . . . Utility 24 | . 1 . . 2 2 19 Weapon 14 | . . . . . 10 4 Tool/Special 2 | . . . . . . 2 Average Slot Usage (%) 84 | . 71 83 89 83 87 50 Engine 5 | . 11 11 11 . . . Core 5 | . . . . 11 12 8 Treads 24 | . 24 25 25 25 25 9 Device 7 | . . 8 14 3 . 2 Storage 11 | . 9 12 12 12 12 5 Hackware 4 | . . . . 5 12 5 Energy Gun 6 | . 19 25 11 . . 1 Ballistic Gun 6 | . 5 . 2 12 12 3 Slashing Weapon 9 | . . . 9 12 12 3 Peak Build Rating 52 | 5 8 10 41 43 37 52 Average Rating 29 | 4 6 8 29 33 34 40 On Entrance 18 | . 5 6 10 41 32 37 Avg Prop Armor Cover (%) 9 | . . . . . . 9 Naked Turns . | . . . . . . . Heaviest Build 231 | 9 29 31 214 231 218 225 Greatest Support 74 | 40 40 40 40 42 45 74 Greatest Overweight (x) 9 | . 1 . 5 5 5 9 Average Overweight (x) 2 | . . . 1 5 4 2 Largest Inventory Capacity 35 | 5 15 15 35 35 35 35 Average Capacity 29 | 5 13 15 26 35 35 26 Most Carried 35 | 5 15 14 35 35 35 35 Average Carried 27 | 1 8 12 24 31 34 24 Final Capacity 35 | 5 15 15 35 35 35 15 Final Carried 35 | 2 15 12 35 35 35 11 Class Distribution -------------------- 71% | Hauler-Mutant 27% | Hacker-Mutant Dominant Class ---------------- Hacker-Mutant | -10/Materials Hacker-Mutant | -10/Mines Hauler-Mutant | -10/Subcaves Hauler-Mutant | -8/Recycling Hauler-Mutant | -8/Scraptown Hauler-Mutant | -6/Factory Resources | -11 -10 -10 -10 -8 -8 -6 ----------- Run | Yrd Mat Min Sub Rec Scr Fac Matter Collected 1137 | 258 154 50 250 111 20 294 Remotely . | . . . . . . . Salvage Created 2756 | 72 636 166 873 166 . 843 Parts 149 | 8 40 5 38 11 . 47 Haulers Intercepted 2 | . 2 . . . . . Recyclers Shooed 1 | . . . . . . 1 Parts Field Recycled . | . . . . . . . Retrieved Matter . | . . . . . . . Parts Self-Destructed . | . . . . . . . Prevented . | . . . . . . . Parts Restored . | . . . . . . . Kills | -11 -10 -10 -10 -8 -8 -6 ------- Run | Yrd Mat Min Sub Rec Scr Fac Combat Hostiles Destroyed 56 | . 11 6 21 3 . 15 Melee 12 | . . . 7 2 . 3 Guns 41 | . 11 6 13 1 . 10 Cannons 2 | . . . 1 . . 1 AOE 1 | . . . . . . 1 Classes Destroyed 13 | 1 6 . 3 . . 3 Worker 1 | . . . . . . 1 Builder 3 | . 3 . . . . . Tunneler 4 | 3 1 . . . . . Hauler 2 | . 2 . . . . . Recycler 2 | . 1 . . . . 1 Turret 2 | . . . 2 . . . Watcher 3 | . 3 . . . . . Swarmer 14 | . 4 4 3 . . 3 Saboteur 1 | . . . . . . 1 Grunt 16 | . 7 2 1 . . 6 Sentry 6 | . . . 1 3 . 2 Programmer 3 | . . . . . . 3 Subdweller 16 | . . . 16 . . . Best Kill Streak 9 | 2 3 2 5 1 . 9 Combat Bots Only 8 | . 2 2 3 1 . 8 Max Kills in Single Turn 2 | 2 2 1 1 1 . 2 Gunslinging 1 | . 1 . . . . . Exploded 1 | . . . . . . 1 Melee 1 | . . . 1 1 . 1 Uniques/NPCs Destroyed . | . . . . . . . Combat | -11 -10 -10 -10 -8 -8 -6 -------- Run | Yrd Mat Min Sub Rec Scr Fac Hostile Shots Fired 626 | . 41 19 119 14 . 433 Missed 175 | . 11 8 38 . . 118 Hits 451 | . 30 11 81 14 . 315 Projectile 451 | . 30 11 81 14 . 315 AOE 2 | . . . 2 . . . Critical Strikes 7 | . . 1 2 . . 4 Part Disruptions 1 | . . . . . . 1 Damage Taken 4222 | . 203 61 1028 125 . 2805 Core 1076 | . 40 12 164 9 . 851 Absorbed by Shields . | . . . . . . . Ignored by Resistances 2570 | . 131 41 576 76 . 1746 Core Remaining (%) 55 | 100 . . . . 10 . Volleys Fired 195 | 6 42 12 77 4 . 54 Largest 3 | 2 2 2 2 1 . 3 Hottest 203 | 70 100 100 150 28 . 203 Shots Fired 308 | 12 84 24 121 4 . 63 Gun 292 | 12 84 24 110 4 . 58 Cannon 5 | . . . . . . 5 Launcher . | . . . . . . . Special 11 | . . . 11 . . . Kinetic 60 | 6 38 . . 4 . 12 Thermal 242 | 6 46 24 121 . . 45 Explosive . | . . . . . . . Electromagnetic 6 | . . . . . . 6 Robot Hit Streak 62 | 4 24 8 57 61 . 62 Robot Miss Streak 3 | 2 2 3 1 . . 2 Penetration Max . | . . . . . . . Secondary Targets 5 | . 3 . 2 . . . Max Gunslinging Chain 1 | . 1 . 1 . . . Shots Hit Robots 273 | 8 69 18 104 6 . 68 Core Hits 121 | 4 32 9 40 5 . 31 Critical Kills 1 | . 1 . . . . . Critical Parts Destroyed . | . . . . . . . Critical Strikes 24 | 1 7 3 9 . . 4 Burn 18 | 1 6 3 6 . . 2 Destroy 1 | . 1 . . . . . Sever 5 | . . . 3 . . 2 Melee Attacks 60 | . . . 43 2 . 15 Impact . | . . . . . . . Slashing 60 | . . . 43 2 . 15 Piercing . | . . . . . . . Sneak Attacks . | . . . . . . . Combat Hostiles . | . . . . . . . Follow-up Attacks . | . . . . . . . Damage Inflicted 5540 | 119 875 258 2095 141 . 2052 Guns 3748 | 119 875 258 1272 68 . 1156 Cannons 77 | . . . . . . 77 Explosions 248 | . . . . . . 248 Melee 1420 | . . . 797 73 . 550 Ramming 21 | . . . . . . 21 Kinetic 744 | 69 361 . . 68 . 246 Thermal 3209 | 50 514 258 1298 . . 1089 Explosive . | . . . . . . . Electromagnetic 146 | . . . . . . 146 Impact . | . . . . . . . Slashing 1420 | . . . 797 73 . 550 Piercing . | . . . . . . . Highest Corruption 3 | . . . . . . 3 Average Corruption 1 | . . . . . . 1 Corruption Purged . | . . . . . . . Corruption Blocked . | . . . . . . . Effects 5 | . . . . . . 5 Message Errors 2 | . . . . . . 2 Matter Fused 1 | . . . . . . 1 Energy Discharges 1 | . . . . . . 1 Data Loss (minor) 1 | . . . . . . 1 Overload Shots 12 | . . . 12 . . . Effects 4 | . . . 4 . . . Energy Bleed 2 | . . . 2 . . . Heat Surge 1 | . . . 1 . . . Short Circuit 1 | . . . 1 . . . Overflow Damage 12 | . . . . . . 12 Projectiles . | . . . . . . . Explosions 1 | . . . . . . 1 Melee 11 | . . . . . . 11 Knockbacks . | . . . . . . . Impact . | . . . . . . . Kinetic . | . . . . . . . Secondary . | . . . . . . . Self-Inflicted Damage 36 | . . . . . . 36 Shots 1 | . . . . . . 1 Rammed 1 | . . . . . . 1 Targets Rammed 6 | . . . . . . 6 Kicked 5 | . . . . . . 5 Crushed . | . . . . . . . Highest Temperature 616 | 27 141 216 306 19 . 616 Average Temperature 107 | 11 37 89 102 7 . 191 Received Heat Transfer 1818 | . 171 39 252 63 . 1293 Effects 20 | . . . . . . 20 Shutdowns 5 | . . . . . . 5 Energy Bleed 3 | . . . . . . 3 Interference 5 | . . . . . . 5 Damage (minor) 2 | . . . . . . 2 Damage (major) 5 | . . . . . . 5 Siege Activations . | . . . . . . . Martial Activations . | . . . . . . . Shielding Activations . | . . . . . . . Robots Disrupted . | . . . . . . . Combat Hostiles . | . . . . . . . Robots Corrupted . | . . . . . . . Combat Hostiles . | . . . . . . . Parts Fried . | . . . . . . . Impact Corruptions . | . . . . . . . Robots Melted . | . . . . . . . Combat Hostiles . | . . . . . . . Parts Melted 16 | . 5 3 4 . . 4 Heat Transferred 9142 | 222 1961 962 3686 . . 2311 Parts Sabotaged . | . . . . . . . Parts Stolen . | . . . . . . . Parts Stripped . | . . . . . . . Power Chain Reactions 1 | . . . . . . 1 Alert | -11 -10 -10 -10 -8 -8 -6 ------- Run | Yrd Mat Min Sub Rec Scr Fac Maximum Alert Level . | . . . . . . . Low Security (%) 100 | 100 100 100 . 100 . 100 Level 1 . | . . . . . . . Level 2 . | . . . . . . . Level 3 . | . . . . . . . Level 4 . | . . . . . . . Level 5 . | . . . . . . . High Security . | . . . . . . . Max Security . | . . . . . . . Peak Influence 88 | 10 75 50 . 20 . 88 Initial . | . . . . . . . Average 3 | 1 12 4 . . . 12 Influence Increases 1316 | 15 363 150 210 73 . 505 Destroy 0b10 Robot/C 840 | . 220 120 140 60 . 300 Destroy 0b10 Robot/NC 75 | 15 50 . . . . 10 Destroy Leader 170 | . 60 30 10 . . 70 Successful Hack 72 | . 17 . . 13 . 42 Destroy Structure 9 | . 1 . . . . 8 Lose Combat Pursuer 150 | . 15 . 60 . . 75 Influence Decreases 1286 | 15 363 150 210 73 . 475 Time Decay 1171 | 15 363 150 210 73 . 360 Lost Part 115 | . . . . . . 115 Squads Dispatched 6 | . 1 . . . . 5 Investigation 2 | . 1 . . . . 1 Extermination 2 | . . . . . . 2 Reinforcement 1 | . . . . . . 1 Assault 1 | . . . . . . 1 Garrison . | . . . . . . . Intercept . | . . . . . . . Searches Triggered . | . . . . . . . Construction Impeded . | . . . . . . . Haulers Reinforced 1 | . . . . . . 1 Active Scanning Responses . | . . . . . . . Cargo Convoy Interrupts . | . . . . . . . Stealth | -11 -10 -10 -10 -8 -8 -6 --------- Run | Yrd Mat Min Sub Rec Scr Fac Distress Signals 2 | . 1 . . . . 1 Communications Jammed . | . . . . . . . Distress Signals . | . . . . . . . Times Spotted 85 | . 20 6 25 3 . 31 Peak Tracking Total 9 | . 4 2 3 1 . 9 Tactical Retreats 5 | . 1 . 2 . . 2 Traps | -11 -10 -10 -10 -8 -8 -6 ------- Run | Yrd Mat Min Sub Rec Scr Fac Traps Triggered 7 | . 4 . 3 . . . Indirectly . | . . . . . . . Trap Hack Attempts . | . . . . . . . Triggered . | . . . . . . . Disarmed . | . . . . . . . Reprogrammed . | . . . . . . . Reused . | . . . . . . . Traps Extracted . | . . . . . . . Installed . | . . . . . . . Triggered . | . . . . . . . Machines | -11 -10 -10 -10 -8 -8 -6 ---------- Run | Yrd Mat Min Sub Rec Scr Fac Machines Disabled 1 | . . . 1 . . . Max in Single Turn 1 | . . . 1 . . . Garrison Access 1 | . . . . . . 1 Machines Repaired . | . . . . . . . Machines Dismantled . | . . . . . . . Machines Sabotaged . | . . . . . . . Overloaded Fab Kills . | . . . . . . . Hacking | -11 -10 -10 -10 -8 -8 -6 --------- Run | Yrd Mat Min Sub Rec Scr Fac Machines Accessed 24 | . 5 . 4 12 . 3 Terminals 14 | . 5 . . 6 . 3 Fabricators . | . . . . . . . Repair Stations . | . . . . . . . Recycling Units 6 | . . . . 6 . . Scanalyzers . | . . . . . . . Garrison Access . | . . . . . . . Total Hacks 68 | . 21 . 9 32 . 6 Successful 55 | . 15 . 9 27 . 4 Failed 13 | . 6 . . 5 . 2 Catastrophic . | . . . . . . . Database Lockouts . | . . . . . . . Manual 35 | . 20 . . 13 . 2 Terminals 46 | . 21 . . 19 . 6 Fabricators . | . . . . . . . Repair Stations . | . . . . . . . Recycling Units 13 | . . . . 13 . . Scanalyzers . | . . . . . . . Garrison Access . | . . . . . . . Terminal Hacks 30 | . 10 . 9 9 . 2 Record 6 | . . . 6 . . . Part Schematic 8 | . . . . 7 . 1 Robot Schematic 3 | . . . . 2 . 1 Robot Analysis 1 | . 1 . . . . . Prototype ID Bank 9 | . 9 . . . . . Open Door 1 | . . . 1 . . . Proto ID Catalog 1 | . . . 1 . . . Release Object 1 | . . . 1 . . . Fabricator Hacks . | . . . . . . . Repair Station Hacks . | . . . . . . . Recycling Unit Hacks 6 | . . . . 6 . . Retrieve Components 6 | . . . . 6 . . Scanalyzer . | . . . . . . . Garrison Access Hacks . | . . . . . . . Unauthorized Hacks 19 | . 5 . . 12 . 2 Terminals 13 | . 5 . . 6 . 2 Botnet 13 | . 5 . . 6 . 2 Fabricators . | . . . . . . . Repair Stations . | . . . . . . . Recycling Units 6 | . . . . 6 . . Reject 6 | . . . . 6 . . Scanalyzers . | . . . . . . . Garrison Access . | . . . . . . . Data Cores Recovered . | . . . . . . . Used . | . . . . . . . Hacking Detections 10 | . 5 . . 2 . 3 Full Trace Events 3 | . 1 . . 1 . 1 Feedback Events 1 | . . . . . . 1 Corruption 1 | . . . . . . 1 Feedback Blocked . | . . . . . . . Robot Schematics Acquired 3 | . . . . 2 . 1 Robots Built . | . . . . . . . Authchips . | . . . . . . . Time . | . . . . . . . Total Robot Build Rating . | . . . . . . . Part Schematics Acquired 8 | . . . . 7 . 1 Parts Built . | . . . . . . . Authchips . | . . . . . . . Time . | . . . . . . . Total Part Build Rating . | . . . . . . . Part Studies Acquired . | . . . . . . . Parts Repaired . | . . . . . . . Time . | . . . . . . . Parts Recycled . | . . . . . . . Recycled Matter . | . . . . . . . Retrieved Matter . | . . . . . . . Retrieved Components 24 | . . . . 24 . . Parts Scanalyzed . | . . . . . . . Part Schematics Acquired . | . . . . . . . Parts Damaged . | . . . . . . . Bothacking | -11 -10 -10 -10 -8 -8 -6 ------------ Run | Yrd Mat Min Sub Rec Scr Fac Used RIF Installer . | . . . . . . . Robots Hacked . | . . . . . . . Non-combat . | . . . . . . . Combat . | . . . . . . . Robot Hacks Applied . | . . . . . . . Relay Couplers Released 4 | . . . . . . 4 Programmers 4 | . . . . . . 4 Fabnet Peak Effective % . | . . . . . . . Robots Rewired . | . . . . . . . Allies Hacked . | . . . . . . . Hacks Repelled . | . . . . . . . Allies | -11 -10 -10 -10 -8 -8 -6 -------- Run | Yrd Mat Min Sub Rec Scr Fac Total Allies . | . . . . . . . Largest Group . | . . . . . . . Highest-Rated Group . | . . . . . . . Highest-Rated Ally . | . . . . . . . Total Orders . | . . . . . . . Ally Attacks . | . . . . . . . Total Damage . | . . . . . . . Kills . | . . . . . . . Allies Corrupted . | . . . . . . . Allies Melted . | . . . . . . . Intel | -11 -10 -10 -10 -8 -8 -6 ------- Run | Yrd Mat Min Sub Rec Scr Fac Active Infowar (turns) 12054 | . . 395 9643 2016 . . Sensors 2530 | . . 395 2135 . . . Structural 11371 | . . 394 8961 2016 . . Robot Analysis Total 1 | . 1 . . . . . Derelict Logs Recovered 4 | . . 1 1 . 2 . Drone Launches . | . . . . . . . Drone Recoveries . | . . . . . . . Exploration | -11 -10 -10 -10 -8 -8 -6 ------------- Run | Yrd Mat Min Sub Rec Scr Fac Turns Passed 26274 | 96 1410 1087 10239 7225 5068 1149 Spaces Moved 6801 | 56 697 646 2995 1186 919 302 Core 44 | 21 . . . . . 23 Treads 6630 | 35 697 646 2995 1186 919 152 Legs 76 | . . . . . . 76 Wheels . | . . . . . . . Hover . | . . . . . . . Flight 51 | . . . . . . 51 Fastest Speed 50 | 50 160 160 160 602 472 100 Average Speed 360 | 118 164 160 308 602 543 304 Slowest Speed 660 | 160 240 160 660 660 602 500 Overloaded Moves . | . . . . . . . Propulsion Burnouts . | . . . . . . . Robots Hopped . | . . . . . . . Potential Cave-ins . | . . . . . . . Cave-ins Triggered . | . . . . . . . Exploration Rate (%) 65 | 3 96 99 98 99 55 5 Regions Visited 6 Branch Regions 4 Pre-discovered Areas 1 | . . . . . 1 . Known Exits Taken 6 | 1 1 1 1 1 1 . Unknown Exits Taken . | . . . . . . . Scrap Searched 17 | . . . 10 . 7 . Spaces Dug 6 | . . . 6 . . . Terrain Destroyed 14 | . . . 6 . . 8 Melee 6 | . . . 6 . . . Projectile . | . . . . . . . AOE 8 | . . . . . . 8 Terrain Rammed . | . . . . . . . Walls Destroyed . | . . . . . . . Machines Disabled . | . . . . . . . Actions | -11 -10 -10 -10 -8 -8 -6 --------- Run | Yrd Mat Min Sub Rec Scr Fac Total 8148 | 73 882 675 3796 1268 1009 445 Wait 868 | 1 121 12 616 43 55 20 Move 6795 | 55 696 645 2994 1185 918 302 Hop . | . . . . . . . Pick Up 100 | 6 16 1 22 20 14 21 Fast Attach 3 | 1 1 . . . 1 . Attach 44 | 4 1 4 10 3 . 22 Detach 7 | . 1 . 2 2 . 2 Swap 30 | . 1 1 19 4 4 1 Drop 40 | . 3 . 13 5 17 2 Fire 195 | 6 42 12 77 4 . 54 Melee 60 | . . . 43 2 . 15 Ram 1 | . . . . . . 1 Kick 5 | . . . . . . 5 Crush . | . . . . . . . Escape Stasis . | . . . . . . . Rewire . | . . . . . . . Trap . | . . . . . . . Miscellaneous . | . . . . . . . Route ------- -11/Scrapyard -10/Materials (discovered 5 exits: *Mat x3 / *Min x2) -10/Mines (discovered 4 exits: *Mat x2 / *Exi / *Sub) -10/Subcaves (discovered 3 exits: *Mat x2 / *Rec) -8/Recycling (discovered 2 exits: *Fac / *Scr) -8/Scraptown -6/Factory (discovered 3 exits: Low x2 / Ext) History --------- Turn | Location | Event 14 | -11/Scrapyard | Identified exit to Materials 14 | -11/Scrapyard | Discovered exit to Materials (range 15) 97 | -11/Scrapyard | Entered Materials 97 | -10/Materials | Evolved 1 slot: Utility x1 307 | -10/Materials | Build established: Hacker-Mutant 526 | -10/Materials | Identified exit to Mines 526 | -10/Materials | Discovered exit to Mines (range 8) 597 | -10/Materials | Derelicts attacked the area 905 | -10/Materials | Identified exit to Materials 905 | -10/Materials | Discovered exit to Materials (range 5) 1033 | -10/Materials | Discovered exit to Materials (range 4) 1167 | -10/Materials | Discovered exit to Materials (range 13) 1358 | -10/Materials | Discovered exit to Mines (range 15) 1507 | -10/Materials | Entered Mines 1766 | -10/Mines | Learned Materials emergency access door positions 1782 | -10/Mines | Deemed a non-threat by the Exiles lab entrance 1782 | -10/Mines | Identified exit to Exiles 1782 | -10/Mines | Discovered exit to Exiles (range 5) 1905 | -10/Mines | Identified exit to Subcaves 1905 | -10/Mines | Discovered exit to Subcaves (range 9) 1950 | -10/Mines | Discovered exit to Materials (range 5) 2287 | -10/Mines | Discovered exit to Materials (range 11) 2321 | -10/Mines | Found a damaged Exp. Sensor Array with a note attached 2329 | -10/Mines | Found Prototype Device 2594 | -10/Mines | Entered Subcaves 2595 | -10/Subcaves | Approached by a straggling Scientist 2686 | -10/Subcaves | Visited Clippyterm 2690 | -10/Subcaves | Learned 40 Factory zone layouts 2690 | -10/Subcaves | Learned Factory garrison access intel 2778 | -10/Subcaves | Visited 4L-MR0's lab 2795 | -10/Subcaves | Found Meta Core 2958 | -10/Subcaves | Identified exit to Recycling 2958 | -10/Subcaves | Discovered exit to Recycling (range 13) 2999 | -10/Subcaves | Ambushed by Subdwellers from Twisted Machinery 3232 | -10/Subcaves | Learned Materials interactive machine intel 3610 | -10/Subcaves | Shifting Twisted Machinery released Spk. Treads 3717 | -10/Subcaves | Shifting Twisted Machinery released Sub. Monowheel 3738 | -10/Subcaves | Shifting Twisted Machinery released Sub. Power Source 3935 | -10/Subcaves | Core integrity fell below 50% 4024 | -10/Subcaves | Disturbed a concealed Subdweller 4477 | -10/Subcaves | A swath of the cavern ceiling suddenly collapsed 5641 | -10/Subcaves | Core integrity fell below 20% 5692 | -10/Subcaves | Identified exit to Materials 5692 | -10/Subcaves | Discovered exit to Materials (range 10) 5695 | -10/Subcaves | Shifting Twisted Machinery released Scrap Shield 6365 | -10/Subcaves | A swath of the cavern ceiling suddenly collapsed 6764 | -10/Subcaves | Discovered exit to Materials (range 10) 6789 | -10/Subcaves | Disturbed a concealed Subdweller 6952 | -10/Subcaves | Found SUBCON Basin 7238 | -10/Subcaves | Build established: Hauler-Mutant 12833 | -10/Subcaves | Entered Recycling 13312 | -8/Recycling | Identified exit to Factory 13312 | -8/Recycling | Discovered exit to Factory (range 5) 14716 | -8/Recycling | Scanned before Scraplab entrance 14788 | -8/Recycling | Identified exit to Scraptown 14788 | -8/Recycling | Discovered exit to Scraptown (range 11) 14806 | -8/Recycling | Entered Scraplab 20058 | -8/Recycling | Entered Scraptown 20878 | -8/Scraptown | Visited Junk Repository 21192 | -8/Scraptown | Visited Red Mages 22175 | -8/Scraptown | Discovered exit to Factory (range 11) 22501 | -8/Scraptown | Scanned Subdweller tech in exchange for log data 22513 | -8/Scraptown | Learned Factory terminal intel 22519 | -8/Scraptown | Learned location of Extension (-6) 22696 | -8/Scraptown | Visited SPCMW 22780 | -8/Scraptown | Visited Awakened 22918 | -8/Scraptown | Visited Symbiants 22954 | -8/Scraptown | Visited Bundlers 23318 | -8/Scraptown | Visited TADAMA 25126 | -8/Scraptown | Entered Factory 25126 | -6/Factory | Evolved 8 slots: Power x1, Propulsion x4, Utility x3 25127 | -6/Factory | Identified exit to Extension 25127 | -6/Factory | Identified exit to Lower Caves 25128 | -6/Factory | Loaded intel: 28 terminal locations 25129 | -6/Factory | Loaded intel: 3 garrison access locations 25829 | -6/Factory | Attached Meta Core, gained temporary slots: Propulsion, Utility, Weapon 25898 | -6/Factory | Destroyed 8 combat bots 25899 | -6/Factory | Lost 16 parts (3p3n2u8w) 26217 | -6/Factory | Core integrity fell below 50% 26234 | -6/Factory | Core integrity fell below 20% 26267 | -6/Factory | Lost 10 parts (2p7n1w) 26275 | -6/Factory | Destroyed by G-50 Soldier with Heavy Laser Last Messages --------------- Angular Momentum Engine. 26188_ K-01 Serf cleans the Fusion Modulator. 26189_ Kicked G-50 Soldier. 26197_ K-01 Serf cleans the Fusion Modulator. 26205_ Cesium-ion Thruster destroyed. 26205_ Lgt. Antimatter Reactor destroyed. 26207_ K-01 Serf destroyed. 26211_ Flexi-carbon Leg destroyed. 26213_ Kicked S-27 Virus. 26216_ K-01 Serf collects debris. 26216_ Carbon-fiber Leg destroyed. 26217_ Meta Core destroyed. 26217_ K-01 Serf collects debris. 26217_ Temporary Propulsion slot lost. 26217_ Temporary Utility slot lost. 26217_ Slammed into S-27 Virus. 26229_ VTOL Module destroyed. 26257_ Z YPOQ9YHOP>O0Y|ZX3QDFRS17LYW7 26265_ Acquired 10 matter. Map ----- +----------------------------------------------------+ | ????????????????????????????????????? # " | | ????????????????????????????#+###### # """ " | | ??????????################### ?? # """ | | ?????????# + ??? # """ " | | ?# #?????# """ """ """ """ # ???? # " | | ?# #?????# """ """ """ """ # #?????## """ | | ?# #?????# """ """ """ """ # #??????# """ | | ?# #?????# !% %# #??????# """ | | ?# #?????# %+% #??????# | | ?# #?????# # #??????# | | ?# #?????# % % # #??????# | | ##+############/############# ##?????########### | | ##%############ #??????????????# | | # T #??????????????# | | " """" / "" #??????????????# | | " """" # #???############ | | " """" # #######+### #???# ## | | " """" # #?# ########### """ ## | | # #?#"" """ # ## ""R" ## | | ############## #?#"" """ # ## "" " ## | | #?#"" """gw ## ## | | ############## #?#T g # ##!! ## | | ####?????????# #?#"" """ # ##=! ## | | #?????????# #?#""g""" #####+#####!! ## | | #?????????? ??#"" """g#?# / %#######+####### | | #?????????? ??# g @s### %[ | | #?????????? ??# /ss "! !% % %! | | ##########??????# ### [ / ! | | # #??????#########?#! [ ######## ###### | | ?????????????# ### ###[###=###??# #?# | | ????????????? ## """ #?# #?##?????# #?# ! | | ????????????? ## ""R" #?# #????????# #?# / | | ????????????? ## "" " #?# #????????# ###! | | ????????????? ## #?# #????????# !*+%|! | | ????????????? ## #?# #????????# ###=[" | | ?????????????###########+#####?# #????????# #?# "G | | ??????????????????#### #???# #????????# #?# " | | ?????????????##???# ##### #????????# #?# | | ????????????? #???# ## #????????# #?#### | | ????????????? ##### ## #######????????# #????? | | ????????????? + ## ###########????# #????? | | ????????????? ########## ### #?#### ###??? | | ????????????? #????????# #?# + ### | | ????????????? #??????### ### #?????#?# | | ?????????????##??????# # """" #???????# | | ?????????????######### # """" #???????+ | | ????????????? T + """" #???????# | | ?????????????######### # """" #???????# | | ?????????????#???????# # #???????# | | ?????????????????????### #####################+##+ | +----------------------------------------------------+ Best States ------------- Heat Dissipation 39 Energy Generation 33 Energy Capacity 370 Matter Stores 300 Matter Capacity 300 Sight Range 16 Robot Scan Range 14 Terrain Scan Density 10 Additional Mass Support 9 Resistance: KI 35 Resistance: TH 35 Resistance: EX 35 Resistance: EM 35 Resistance: I 35 Resistance: S 35 Resistance: P 35 Evasion (%) 55 Recoil Reduction 3 Offensive Hacking 20 Defensive Hacking 10 Authchip Count 4 Item Schematics ----------------- Imp. Light Armor Plating | -8/Recycling | Hacked Enh. Optical Array | -8/Recycling | Hacked Hacking Suite | -8/Recycling | Hacked Arc Projector | -8/Recycling | Hacked Imp. Medium Treads | -8/Recycling | Hacked Thermal Shield | -8/Recycling | Hacked Remote Datajack | -8/Recycling | Hacked Flexi-carbon Leg | -6/Factory | Hacked Robot Schematics ------------------ L-31 Rogue | -8/Recycling | Hacked O-24 Administrator | -8/Recycling | Hacked M-22 Extractor | -6/Factory | Hacked Fabricated ------------ Nothing Repaired ---------- Nothing Studied --------- None Alien Tech Used ----------------- None Achievements -------------- None Challenges ------------ None Game ------ Seed TitaniumExoskeletonMallet Manual? 0 Play Time 00:52:09 Cumulative 229.1 hours Start 2025.12.26 @ 09:11:55 End 2025.12.26 @ 10:26:24 Sessions 1 Manual Loads 0 Difficulty Explorer Special Mode None Game No. 354 Rogue 0 Adventurer 0 Explorer 354 Win Type - Total 0 Types 0/0/0/0/0/0/0/0/0/0 Lore% 71 Gallery% 68 Achievement% 53 Wizard Run 0 Options --------- Layout 1 ASCII 0 Keyboard 0 Movement Mouse Keybinds 0 Fullscreen 1 Font 24/Smallcaps Map View 50x35 Zoom Use 0% Tactical HUD 1 Map Filters NONE Filters NONE Steam 1 RUN: 41d28b75-5306-44d2-bf91-9c831cec9e94